bitfinex-derivatives/quotes_SOLF0:USTF0_20251018
["timestamp","ask_amount","ask_price","bid_price","bid_amount"]
[1760794593234,2.63,185.32,185.2,45.0]
[1760794593433,4.8555,185.31,185.23,4.8573]
[1760794593830,4.8555,185.31,185.2,107.0]
[1760794594226,4.8555,185.31,185.22,4.8577]
[1760794595436,4.8559,185.3,185.2,111.8582]
[1760794596937,4.8559,185.3,185.21,4.8579]
[1760794597435,7.4852,185.32,185.2,107.0]
[1760794599039,7.4852,185.32,185.23,4.8574]
[1760794599237,7.4852,185.32,185.24,44.98]
[1760794600341,7.4852,185.32,185.25,4.857]
[1760794601442,4.8547,185.34,185.26,4.8566]
[1760794601742,68.48640163,185.36,185.24,44.98]
[1760794602538,73.34060163,185.36,185.27,4.8563]
[1760794603239,4.8546,185.35,185.27,4.8563]
[1760794603643,2.63,185.34,185.25,4.8569]
[1760794604843,2.63,185.34,185.26,44.98]
[1760794605042,7.4848,185.34,185.26,44.98]
[1760794605442,7.4848,185.34,185.26,49.8366]
[1760794606138,4.8551,185.33,185.26,49.8366]
[1760794606344,2.63,185.34,185.26,49.8366]
[1760794606544,4.8551,185.33,185.26,49.8366]
[1760794611646,2.63,185.34,185.26,44.98]
[1760794611847,4.8545,185.35,185.26,44.98]
[1760794613057,4.8545,185.35,185.28,4.8561]
[1760794616048,4.8548,185.34,185.26,49.8367]
[1760794616246,2.73,185.34,185.26,49.7967]
[1760794616851,65.85640163,185.36,185.26,44.94]
[1760794617046,2.73,185.35,185.26,44.94]
[1760794617448,4.8554,185.32,185.26,44.94]
[1760794618956,7.5856,185.31,185.25,4.8569]
[1760794619156,7.5856,185.31,185.2,62.0]
[1760794619157,2.73,185.31,185.23,49.7774]
[1760794620256,65.85640163,185.36,185.23,44.92]
[1760794620472,2.73,185.34,185.23,44.92]
[1760794620655,2.73,185.35,185.23,44.92]
[1760794621060,2.73,185.33,185.19,4.8586]
[1760794621266,2.73,185.31,185.1,94.34316242]
[1760794621458,49.09981427,185.3,185.11,44.94]
[1760794621661,2.73,185.23,185.15,4.8594]
[1760794622161,7.5877,185.23,185.15,4.8594]
[1760794622365,2.73,185.23,185.15,4.8594]
[1760794622659,2.73,185.17,185.1,44.96]
[1760794623360,4.8596,185.16,185.1,44.96]
[1760794623561,2.73,185.17,185.1,44.96]
[1760794623761,2.73,185.15,185.06,0.93916986]
[1760794623961,2.73,185.15,185.06,45.91916986]
[1760794626167,7.5899,185.15,185.06,45.91916986]
[1760794626467,4.17589137,185.22,185.06,45.91916986]
[1760794626670,4.8607,185.12,185.06,45.91916986]
[1760794626966,7.6607,185.12,185.06,45.91916986]
[1760794627556,2.8,185.12,185.06,45.91916986]
[1760794627761,2.8,185.1,185.06,45.91916986]
[1760794628566,2.8,185.1,185.06,0.93916986]
[1760794628757,4.8604,185.13,185.06,0.93916986]
[1760794631467,2.8,185.14,185.06,0.93916986]
[1760794631670,2.8,185.17,185.03,44.98]
[1760794631864,9.04954931,185.2,185.03,45.9201975]
[1760794632071,2.8,185.18,185.03,45.9201975]
[1760794632271,4.16510657,185.17,185.03,45.9201975]
[1760794632471,2.8,185.15,185.03,45.9201975]
[1760794632671,4.16510657,185.14,185.03,45.9201975]
[1760794632867,4.16182699,185.13,185.03,45.9201975]
[1760794633071,4.94190213,185.17,185.03,45.9201975]
[1760794633269,4.94190213,185.17,184.97,45.0]
[1760794633270,2.8,185.15,184.97,45.0]
[1760794633479,2.8,185.13,184.99,0.9402356]
[1760794633770,2.8,185.02,184.99,0.9402356]
[1760794633978,4.8628,185.03,184.99,0.9402356]
[1760794634369,7.6628,185.03,184.99,0.9402356]
[1760794634574,4.8628,185.03,184.99,0.9402356]
[1760794634869,45.0,185.14,184.97,45.0]
[1760794634870,4.15429342,185.13,184.97,45.0]
[1760794635071,4.15429342,185.12,184.97,45.0]
[1760794635282,2.8,185.01,184.97,45.0]
[1760794635475,2.8,185.09,184.97,45.0]
[1760794635774,9.7212,185.12,184.97,45.0]
[1760794635775,4.15429342,185.11,184.97,45.0]
[1760794635973,7.6636,185.01,184.97,45.0]
[1760794636174,9.7212,185.12,184.97,45.0]
[1760794636175,4.14677938,185.09,184.97,45.0]
[1760794636375,2.83,185.09,184.96,0.94057867]
[1760794636777,12.5526,185.09,184.96,0.94057867]
[1760794636976,16.69937938,185.09,184.96,0.94057867]
[1760794637173,12.5526,185.09,184.96,0.94057867]
[1760794637476,75.6154,185.11,184.96,0.94057867]
[1760794637674,75.6154,185.11,184.91,45.0]
[1760794637675,9.7236,185.07,184.91,45.0]
[1760794637871,9.7236,185.07,184.91,45.94069309]
[1760794638272,2.83,185.01,184.91,45.94069309]
[1760794640079,4.8643,184.98,184.91,0.94069309]
[1760794640283,2.83,185.05,184.91,0.94069309]
[1760794640581,6.96929679,185.05,184.91,0.94069309]
[1760794641480,6.96594129,185.05,184.91,0.94069309]
[1760794641980,2.83,185.05,184.91,0.94069309]
[1760794642379,4.8644,184.97,184.91,0.94069309]
[1760794642776,2.83,185.06,184.91,0.94069309]
[1760794642976,4.8642,184.98,184.91,0.94069309]
[1760794643480,2.83,185.0,184.91,0.94069309]
[1760794643882,2.83,185.0,184.88,45.02]
[1760794643883,4.12837658,185.05,184.88,45.02]
[1760794644076,4.12837658,185.05,184.88,45.96093472]
[1760794644478,2.83,185.04,184.88,45.96093472]
[1760794644781,4.12837658,185.05,184.88,45.96093472]
[1760794644982,2.83,184.96,184.88,45.96093472]
[1760794645581,4.8657,184.92,184.88,45.96093472]
[1760794645879,45.02,185.01,184.6,238.0517273]
[1760794646178,4.8678,184.85,184.63,16.19]
[1760794646371,2.83,184.89,184.61,45.06]
[1760794646570,4.8669,184.88,184.62,4.8735]
[1760794646776,2.83,184.96,184.61,45.06]
[1760794646970,2.83,184.94,184.62,16.19]
[1760794647172,4.11302282,184.94,184.62,16.19]
[1760794647380,2.83,184.93,184.62,16.19]
[1760794647686,2.83,184.86,184.72,4.8708]
[1760794647880,2.83,184.86,184.73,3.64]
[1760794648080,4.8676,184.85,184.73,3.64]
[1760794648378,2.83,184.86,184.73,3.64]
[1760794648588,16.47,184.93,184.73,3.64]
[1760794648774,2.83,184.92,184.73,2.7]
[1760794649078,2.83,184.88,184.74,66.8704]
[1760794649284,4.94190213,184.98,184.74,62.0]
[1760794649512,75.6646,184.99,184.74,62.0]
[1760794649513,19.38380839,184.97,184.74,62.0]
[1760794649778,4.10380839,184.96,184.74,62.0]
[1760794649972,4.8671,184.87,184.74,66.8703]
[1760794650178,2.83,184.86,184.74,62.0]
[1760794650380,2.83,184.86,184.73,2.7]
[1760794651683,2.83,184.9,184.73,2.7]
[1760794651876,2.83,184.9,184.77,4.8695]
[1760794652481,4.8665,184.89,184.77,4.8695]
[1760794652682,2.83,184.88,184.74,4.8703]
[1760794653078,2.83,184.88,184.73,2.7]
[1760794653284,2.83,184.88,184.74,62.0]
[1760794653879,2.83,184.88,184.76,4.8698]
[1760794654086,2.83,184.88,184.73,2.7]
[1760794654290,2.83,184.91,184.73,2.7]
[1760794654588,2.83,184.91,184.76,0.94140562]
[1760794654980,2.83,184.91,184.82,4.8683]
[1760794655488,4.8655,184.93,184.76,0.94140562]
[1760794655788,4.8655,184.93,184.83,4.868]
[1760794655989,2.83,184.95,184.82,5.24]
[1760794656186,2.83,184.99,184.82,5.24]
[1760794656385,2.83,185.03,184.82,5.24]
[1760794657090,2.83,185.03,184.84,62.0]
[1760794657284,2.83,185.03,184.86,4.8671]
[1760794657586,2.83,185.01,184.84,107.24]
[1760794657883,2.83,184.97,184.84,107.24]
[1760794658085,4.11213482,185.03,184.84,107.24]
[1760794658282,4.11213482,185.02,184.84,107.24]
[1760794658483,4.8657,184.93,184.84,62.0]
[1760794658790,50.20190213,185.03,184.82,45.26]
[1760794658791,2.83,184.99,184.82,45.26]
[1760794659090,4.8662,184.9,184.82,45.26]
[1760794659589,2.83,184.91,184.82,45.26]
[1760794660386,4.8663,184.9,184.82,45.26]
[1760794661192,4.8657,184.93,184.82,50.1281]
[1760794661489,4.8657,184.93,184.82,45.26]
[1760794661688,4.8657,184.93,184.83,62.0]
[1760794662396,2.83,184.95,184.83,62.0]
[1760794662790,2.83,184.99,184.82,45.26]
[1760794662986,4.13342974,184.98,184.82,45.26]
[1760794663287,2.83,184.96,184.82,45.26]
[1760794663596,4.94190213,184.98,184.82,45.26]
[1760794663597,4.8659,184.92,184.83,4.868]
[1760794663894,4.94190213,184.98,184.82,45.26]
[1760794663895,2.83,184.97,184.82,45.26]
[1760794664092,4.8652,184.94,184.85,4.8673]
[1760794664292,4.13959147,184.93,184.85,4.8673]
[1760794664591,9.01126726,184.92,184.83,4.868]
[1760794664799,4.8659,184.92,184.83,4.868]
[1760794665295,7.6952,184.94,184.82,45.26]
[1760794665496,6.59341282,185.0,184.82,45.26]
[1760794665497,2.83,184.98,184.82,45.26]
[1760794665693,7.6931,185.02,184.92,4.8655]
[1760794665891,4.14750494,185.01,184.92,66.8655]
[1760794666088,4.14750494,185.0,184.92,4.8655]
[1760794666395,4.14075368,184.99,184.92,4.8655]
[1760794666596,4.14075368,184.98,184.92,4.8655]
[1760794666799,2.83,185.02,184.92,4.8655]
[1760794666991,9.00410132,185.01,184.92,4.8655]
[1760794667187,4.14050132,185.0,184.92,4.8655]
[1760794667391,4.14050132,185.0,184.9,28.62]
[1760794667392,4.14050132,184.99,184.9,33.4861]
[1760794667695,2.83,185.02,184.9,33.4861]
[1760794667899,4.11105259,185.01,184.9,33.4861]
[1760794668098,4.11105259,185.0,184.9,33.4861]
[1760794668300,4.11105259,184.99,184.9,33.4861]
[1760794668496,4.11105259,184.98,184.91,4.8657]
[1760794668696,4.11105259,184.97,184.91,4.8657]
[1760794668896,4.94190213,185.01,184.91,4.8657]
[1760794669097,4.19215258,185.0,184.91,66.8657]
[1760794669395,4.19215258,184.99,184.91,4.8657]
[1760794669602,4.19215258,184.98,184.89,4.8664]
[1760794669901,4.19215258,184.97,184.89,4.8664]
[1760794670105,4.19215258,184.96,184.89,4.8664]
[1760794670301,2.75,184.99,184.88,11.1]
[1760794670597,4.19725474,184.98,184.88,11.1]
[1760794670802,2.75,184.99,184.88,11.1]
[1760794670803,4.19725474,184.97,184.88,11.1]
[1760794670999,4.19725474,184.96,184.88,11.1]
[1760794671304,2.75,184.99,184.92,4.8655]
[1760794671498,4.13894747,184.98,184.92,4.8655]
[1760794671696,4.8636,185.0,184.92,4.8655]
[1760794671896,4.13896364,184.99,184.92,4.8655]
[1760794672096,2.75,185.03,184.88,11.1]
[1760794672496,2.75,185.03,184.89,62.0]
[1760794673101,2.75,185.03,184.95,4.8648]
[1760794673797,2.75,185.03,184.96,4.8645]
[1760794673997,4.14501569,185.02,184.88,11.1]
[1760794674197,4.14477703,185.01,184.88,11.1]
[1760794674399,2.75,185.03,184.88,11.1]
[1760794674601,10.02734611,185.1,184.88,11.1]
[1760794674602,2.75,185.01,184.88,11.1]
[1760794674797,4.1469045,185.0,184.88,11.1]
[1760794674992,4.1469045,184.99,184.88,11.1]
[1760794675196,2.75,185.01,184.88,11.1]
[1760794675398,4.14872587,185.0,184.88,11.1]
[1760794675705,2.75,185.01,184.88,11.1]
[1760794675902,4.14873124,185.0,184.88,11.1]
[1760794676206,2.75,185.01,184.88,11.1]
[1760794676399,9.01550081,185.0,184.91,4.8659]
[1760794676599,2.75,184.98,184.91,4.8659]
[1760794676798,2.75,185.03,184.89,62.0]
[1760794676996,4.15234896,185.02,184.89,62.0]
[1760794677192,2.75,185.03,184.89,62.0]
[1760794677600,2.75,185.08,184.89,62.0]
[1760794677799,4.15477732,185.07,184.9,45.34]
[1760794678102,4.15477732,185.06,184.9,45.34]
[1760794678299,2.75,185.08,184.99,4.8637]
[1760794678504,2.75,185.08,184.9,61.53]
[1760794678804,4.94190213,185.13,184.9,61.53]
[1760794678805,2.75,185.13,184.9,61.53]
[1760794678998,4.8608,185.11,185.02,4.8629]
[1760794679303,2.75,185.13,185.0,45.34]
[1760794679496,2.75,185.13,185.01,11.1]
[1760794679702,2.75,185.13,185.05,4.8621]
[1760794680600,4.8597,185.15,185.06,4.8618]
[1760794680996,2.75,185.16,185.06,4.8618]
[1760794681402,2.75,185.16,185.07,4.8615]
[1760794681603,2.75,185.16,185.04,62.0]
[1760794681796,2.75,185.21,185.04,62.0]
[1760794682000,4.15214897,185.2,185.05,45.32]
[1760794682199,4.8586,185.19,185.09,4.861]
[1760794682509,2.75,185.21,185.05,45.32]
[1760794683206,2.75,185.21,185.13,4.8601]
[1760794683401,4.8575,185.23,185.13,4.8601]
[1760794685008,2.75,185.24,185.15,4.8596]
[1760794685211,2.75,185.24,185.14,34.78]
[1760794685407,2.75,185.24,185.15,45.32]
[1760794685706,7.6565,185.28,185.06,75.6283]
[1760794686009,7.6565,185.28,185.07,45.32]
[1760794686207,2.8,185.28,185.05,9.7244]
[1760794686399,2.8,185.28,185.06,45.32]
[1760794687216,2.8,185.28,185.12,62.0]
[1760794689008,7.6563,185.28,185.17,4.8591]
[1760794689315,7.6563,185.28,185.18,45.32]
[1760794691507,2.8,185.28,185.18,45.32]
[1760794692115,2.8,185.28,185.19,62.0]
[1760794692306,2.8,185.33,185.21,4.858]
[1760794692505,9.04904952,185.42,185.19,62.0]
[1760794692708,2.8,185.4,185.19,62.0]
[1760794693003,2.8,185.29,185.19,62.0]
[1760794694309,2.8,185.27,185.15,4.8594]
[1760794694508,2.8,185.27,185.16,45.28]
[1760794695111,7.6567,185.27,185.16,45.28]
[1760794695318,2.8,185.26,185.16,45.28]
[1760794696114,2.8,185.26,185.17,45.26]
[1760794696616,4.857,185.25,185.17,45.26]
[1760794697019,2.61,185.34,185.17,45.26]
[1760794697319,2.61,185.32,185.17,45.26]
[1760794697616,4.10333843,185.31,185.13,49.9202]
[1760794697816,2.61,185.21,185.13,49.9202]
[1760794698016,2.61,185.27,185.09,4.8611]
[1760794698318,2.61,185.16,185.08,45.28]
[1760794698612,2.61,185.32,185.08,45.28]
[1760794698815,2.61,185.23,185.07,139.9]
[1760794699030,2.61,185.23,185.08,45.3]
[1760794699216,4.04351221,185.29,185.07,139.9]
[1760794699420,7.4681,185.21,185.08,45.3]
[1760794700721,2.61,185.21,185.08,45.3]
[1760794701321,2.61,185.21,185.09,62.0]
[1760794701526,2.61,185.28,185.09,62.0]
[1760794701740,2.61,185.33,185.09,62.0]
[1760794701909,2.61,185.31,185.09,62.0]
[1760794702116,2.61,185.24,185.14,4.8597]
[1760794702313,2.61,185.24,185.15,45.3]
[1760794702510,2.61,185.32,185.14,45.28]
[1760794702721,2.61,185.3,185.14,45.28]
[1760794702917,4.04750056,185.29,185.14,45.28]
[1760794703121,4.04750056,185.28,185.14,45.28]
[1760794703323,2.61,185.26,185.14,45.28]
[1760794703520,4.04750056,185.31,185.14,45.28]
[1760794703818,2.61,185.29,185.14,45.28]
[1760794704026,4.858,185.22,185.14,45.28]
[1760794705116,2.61,185.23,185.14,45.28]
[1760794705315,2.61,185.23,185.14,107.28]
[1760794706118,2.61,185.23,185.15,4.8594]
[1760794708021,4.8573,185.24,185.14,107.28]
[1760794708022,4.8568,185.26,185.16,4.8592]
[1760794708225,2.61,185.27,185.14,107.28]
[1760794709226,2.61,185.27,185.14,62.0]
[1760794709427,2.61,185.27,185.15,45.26]
[1760794710235,7.4667,185.27,185.18,4.8586]
[1760794710732,4.94190213,185.33,185.15,45.26]
[1760794710920,2.61,185.26,185.16,4.8593]
[1760794711121,2.61,185.26,185.15,45.26]
[1760794713128,2.61,185.26,185.19,4.8584]
[1760794715526,2.61,185.3,185.15,45.26]
[1760794716224,2.61,185.34,185.14,62.0]
[1760794716419,2.61,185.32,185.15,45.22]
[1760794716626,13.7074437,185.33,185.15,45.22]
[1760794716627,4.08020191,185.31,185.15,45.22]
[1760794716825,2.61,185.29,185.15,45.22]
[1760794717932,4.8564,185.28,185.19,4.8585]
[1760794718929,4.8566,185.27,185.19,4.8585]
[1760794719122,2.61,185.26,185.17,4.859]
[1760794719327,4.94190213,185.3,185.14,62.0]
[1760794719530,13.72498275,185.29,185.15,45.22]
[1760794719724,2.61,185.27,185.15,45.22]
[1760794719924,2.61,185.22,185.15,50.0795]
[1760794722127,4.8571,185.25,185.15,45.22]
[1760794722334,2.61,185.26,185.15,45.22]
[1760794722535,4.10660785,185.25,185.15,45.22]
[1760794722737,7.467,185.26,185.18,4.8587]
[1760794723029,4.10661222,185.25,185.18,4.8587]
[1760794723236,4.11147688,185.24,185.18,4.8587]
[1760794723535,2.61,185.26,185.18,4.8587]
[1760794723735,4.11149607,185.25,185.18,4.8587]
[1760794723955,4.11149607,185.24,185.18,4.8587]
[1760794724136,4.8572,185.25,185.18,4.8587]
[1760794724336,2.61,185.23,185.15,4.8594]
[1760794724631,4.11496942,185.22,185.16,45.22]
[1760794724838,2.61,185.23,185.16,45.22]
[1760794725034,4.11443939,185.22,185.16,45.22]
[1760794725225,2.61,185.23,185.16,45.22]
[1760794725536,4.11467152,185.22,185.16,45.22]
[1760794725834,2.61,185.23,185.16,45.22]
[1760794726041,4.11486595,185.22,185.16,45.22]
[1760794726238,4.11486595,185.21,185.16,45.22]
[1760794726534,2.81,185.21,185.16,45.22]
[1760794727330,7.668,185.22,185.16,45.22]
[1760794727534,4.11875192,185.21,185.15,45.22]
[1760794727834,7.668,185.22,185.15,45.22]
[1760794728034,4.11875114,185.21,185.14,4.8597]
[1760794728230,7.668,185.22,185.15,45.2]
[1760794728426,4.11749737,185.21,185.15,45.2]
[1760794728626,2.81,185.24,185.15,45.2]
[1760794728925,4.8588,185.19,185.14,45.2]
[1760794729129,4.11697821,185.18,185.14,45.2]
[1760794729332,2.81,185.16,184.97,23.08576343]
[1760794729532,4.11586781,185.15,184.98,45.24]
[1760794729828,4.11586781,185.14,184.98,45.24]
[1760794730026,4.11480228,185.13,184.98,45.24]
[1760794730227,2.81,185.14,184.98,45.24]
[1760794730433,4.94190213,185.18,184.95,139.84]
[1760794730634,7.75190213,185.16,184.95,139.84]
[1760794730935,4.11189582,185.15,184.96,45.24]
[1760794731137,2.81,185.13,184.96,45.24]
[1760794731330,4.94190213,185.15,184.95,139.84]
[1760794731331,2.81,185.11,184.95,139.84]
[1760794731529,2.81,185.09,184.97,45.24]
[1760794731728,2.81,185.09,184.98,4.8639]
[1760794731729,4.8617,185.08,184.98,4.8639]
[1760794732331,4.8617,185.08,184.98,66.8639]
[1760794732532,4.8617,185.08,184.99,45.26]
[1760794732931,4.8617,185.08,185.0,45.24]
[1760794733132,4.8617,185.08,184.98,66.8639]
[1760794733434,4.8617,185.08,184.95,139.84]
[1760794733435,4.8622,185.06,184.99,45.26]
[1760794733638,4.8622,185.06,184.95,139.84]
[1760794733837,4.8622,185.06,184.96,45.24]
[1760794734143,4.8622,185.06,184.97,50.1041]
[1760794734435,4.8625,185.05,184.97,45.24]
[1760794734640,2.81,185.04,184.97,45.24]
[1760794734933,2.81,185.04,184.95,139.84]
[1760794735138,2.81,185.04,184.96,45.26]
[1760794735341,2.81,185.04,184.95,139.84]
[1760794735737,2.81,185.04,184.96,45.24]
[1760794735940,7.6717,185.07,184.96,45.24]
[1760794736135,7.6717,185.07,184.95,139.84]
[1760794736442,7.6717,185.07,184.96,62.0]
[1760794736844,7.6717,185.07,184.97,45.24]
[1760794737041,4.8622,185.06,184.96,62.0]
[1760794737248,2.81,185.05,184.97,45.24]
[1760794737449,2.81,185.05,184.96,62.0]
[1760794737649,2.81,185.05,184.97,45.24]
[1760794737844,2.81,185.05,184.96,66.8644]
[1760794738045,2.81,185.05,184.96,4.8644]
[1760794738253,2.81,185.05,184.97,45.24]
[1760794738457,2.81,185.05,184.98,45.24]
[1760794738850,2.81,185.05,184.96,4.8644]
[1760794739049,2.81,185.05,184.97,45.24]
[1760794739252,4.08146288,185.11,184.87,92.77247445]
[1760794739463,4.08146288,185.1,184.88,45.24]
[1760794739650,4.08146288,185.09,184.89,45.24]
[1760794739954,9.72,185.14,184.89,45.24]
[1760794739955,2.81,185.11,184.89,45.24]
[1760794740146,2.81,185.09,184.89,45.24]
[1760794740353,7.673,185.03,184.94,4.8649]
[1760794740553,7.673,185.03,184.95,45.24]
[1760794740851,7.673,185.03,184.94,4.8649]
[1760794741154,9.7225,185.09,184.9,62.0]
[1760794741451,4.08046439,185.08,184.87,92.77247445]
[1760794741654,4.08046439,185.08,184.76,140.86140562]
[1760794741655,12.5347,185.05,184.76,140.86140562]
[1760794741957,2.81,185.03,184.77,45.24]
[1760794742256,4.8643,184.98,184.88,4.8665]
[1760794742568,2.81,184.99,184.89,9.74]
[1760794742951,2.81,184.99,184.89,13.88]
[1760794743154,2.81,184.99,184.88,4.8665]
[1760794743352,4.8646,184.97,184.89,17.82]
[1760794743556,2.81,185.03,184.89,17.82]
[1760794743953,2.81,185.03,184.89,20.7]
[1760794744357,2.81,184.96,184.76,140.86140562]
[1760794744556,2.81,185.01,184.81,62.0]
[1760794744757,9.7262,185.02,184.82,45.28]
[1760794744758,2.81,185.0,184.82,45.28]
[1760794745257,9.727,185.01,184.82,45.28]
[1760794745558,2.8,184.94,184.83,45.28]
[1760794745755,77.9041,185.03,184.76,140.86140562]
[1760794745756,75.6652,184.98,184.76,140.86140562]
[1760794746056,45.28,184.98,184.76,140.86140562]
[1760794746252,2.8,184.96,184.77,45.28]
[1760794746477,9.7292,184.97,184.77,45.28]
[1760794746653,2.8,184.95,184.77,45.28]
[1760794746855,2.8,184.96,184.77,45.28]
[1760794747057,9.7292,184.97,184.77,45.28]
[1760794747350,2.8,184.96,184.78,45.3]
[1760794747551,2.8,184.96,184.76,140.86140562]
[1760794747952,7.6662,184.9,184.77,45.3]
[1760794748159,2.8,184.9,184.77,45.3]
[1760794748457,2.8,184.9,184.76,140.86140562]
[1760794748657,2.8,184.9,184.77,45.3]
[1760794748852,45.3,184.96,184.77,107.3]
[1760794749257,4.8673,184.86,184.77,112.1696]
[1760794749453,4.8673,184.86,184.77,50.1696]
[1760794749959,7.6677,184.85,184.77,45.3]
[1760794750151,2.8,184.93,184.77,45.3]
[1760794750352,30.9,184.92,184.77,45.3]
[1760794750652,7.668,184.84,184.77,45.3]
[1760794751455,2.8,184.87,184.77,45.3]
[1760794751664,2.8,184.95,184.77,45.3]
[1760794751861,45.32,184.96,184.77,45.3]
[1760794752055,4.8669,184.88,184.77,45.3]
[1760794752253,7.6669,184.88,184.77,45.3]
[1760794752454,2.8,184.88,184.77,45.3]
[1760794752960,4.8672,184.87,184.77,45.3]
[1760794753263,4.8675,184.86,184.77,45.3]
[1760794753959,45.32,184.96,184.77,45.3]
[1760794753960,4.8678,184.84,184.77,45.3]
[1760794754160,2.8,184.85,184.77,45.3]
[1760794754658,4.8683,184.83,184.77,45.3]
[1760794756758,7.6676,184.85,184.77,45.3]
[1760794757867,2.8,184.85,184.77,45.3]
[1760794759056,4.8683,184.83,184.77,45.3]
[1760794759560,2.8,184.85,184.77,45.3]
[1760794760461,2.8,184.85,184.76,0.94140562]
[1760794760764,4.8685,184.82,184.76,0.94140562]
[1760794761361,2.78,184.83,184.73,45.32]
[1760794761564,2.78,184.83,184.72,4.8709]
[1760794761758,2.78,184.83,184.73,0.9417368]
[1760794762866,4.8683,184.82,184.73,5.8122368]
[1760794763167,9.7324,184.91,184.73,0.9417368]
[1760794763360,2.78,184.9,184.73,0.9417368]
[1760794764056,2.78,184.87,184.73,0.9417368]
[1760794764862,2.78,184.85,184.73,0.9417368]
[1760794765458,2.78,184.82,184.73,0.9417368]
[1760794766770,4.8693,184.79,184.73,0.9417368]
[1760794766964,2.78,184.82,184.73,0.9417368]
[1760794767165,12.5135,184.88,184.73,0.9417368]
[1760794767770,4.8687,184.81,184.73,0.9417368]
[1760794768565,4.8687,184.81,184.73,5.8121368]
[1760794768972,4.868,184.84,184.73,0.9417368]
[1760794769271,2.78,184.87,184.76,4.8697]
[1760794769867,4.8676,184.85,184.77,4.8695]
[1760794770173,4.8676,184.85,184.73,0.9417368]
[1760794770870,4.8676,184.85,184.76,4.8698]
[1760794771169,2.78,184.87,184.73,41.5017368]
[1760794771970,2.78,184.87,184.74,62.0]
[1760794772168,4.94190213,184.92,184.74,62.0]
[1760794772367,2.78,184.89,184.76,4.8697]
[1760794772566,2.78,184.87,184.76,4.8697]
[1760794772965,4.05670398,184.86,184.73,41.5017368]
[1760794773167,2.78,184.84,184.64,94.68056599]
[1760794773375,4.05670398,184.83,184.7,0.94176229]
[1760794773575,6.83670398,184.82,184.7,0.94176229]
[1760794773782,4.05670398,184.81,184.65,45.4]
[1760794773975,2.78,184.82,184.7,0.94190248]
[1760794774176,4.06104865,184.81,184.7,0.94190248]
[1760794774383,4.06104865,184.8,184.65,45.4]
[1760794774572,4.8692,184.79,184.7,0.94191523]
[1760794774773,4.8692,184.79,184.65,45.4]
[1760794775181,4.8692,184.79,184.7,0.94190248]
[1760794775381,4.8692,184.79,184.65,45.4]
[1760794775681,4.8692,184.79,184.72,4.8708]
[1760794775879,4.8686,184.81,184.7,0.94190248]
[1760794776184,4.8686,184.81,184.71,108.34176229]
[1760794776978,4.8686,184.81,184.73,4.8704]
[1760794777375,4.94190213,184.86,184.71,62.94176229]
[1760794777685,7.72190213,184.84,184.71,0.94176229]